Cogmind - Beta 16 --- EXPLORER MODE // 2025.12.22 @ 13:56:44 Player: K.K.Y. Result: Destroyed by MB-TLG(R) with Subdweller Laser Performance ------------- Evolutions (0) 0 Regions Visited (3) 600 Robots Destroyed (31) 155 Value Destroyed (841) 841 Prototype IDs (7) 140 Alien Tech Used (0) 0 Bonus (0) 0 TOTAL SCORE: 1736 Bonus ------- None Cogmind --------- Core Integrity 0/250 Matter 280/300 Energy 100/100 System Corruption 1% Temperature Cool (6) Movement Core (1450) Ox28 Location -10/Subcaves Parts ------- > --- POWER (1) -------- (None) > --- PROPULSION (2) --- (None) > --- UTILITY (3) ------ Huge Storage Unit Structural Scanner Core Shielding (fused) > --- WEAPON (2) ------- Riot Gun > --- INVENTORY (25) --- Humpback Machine Analyzer Utility Shielding Light Armor Plating Improved Light Armor Plating Makeshift Light Armor Plating Makeshift System Shield Enhanced Flamer Peak State ------------ > --- POWER ------------ Light Nuclear Core > --- PROPULSION ------- Light Treads Light Treads > --- UTILITY ---------- Structural Scanner Core Shielding Improved Light Armor Plating > --- WEAPON ----------- Heavy Battle Rifle Makeshift Shrapnel Gun > --- INVENTORY -------- Huge Storage Unit Machine Analyzer Utility Shielding Light Armor Plating Enhanced Flamer [Rating: 18] Favorites ----------- Power Light Nuclear Core Engine Ion Engine Power Core Light Nuclear Core Propulsion Light Treads Treads Light Treads Utility Structural Scanner Device Structural Scanner Storage Huge Storage Unit Processor Targeting Computer Protection Core Shielding Weapon Medium Laser Energy Gun Medium Laser Ballistic Gun Barrage Gun Ballistic Cannon Battle Cannon Build | -11 -10 -10 -10 ------- Run | Yrd Mat Min Sub Slots Evolved 1 | . 1 . . Power . | . . . . Propulsion . | . . . . Utility 1 | . 1 . . Weapon . | . . . . Parts Attached 23 | 7 4 5 7 Power 3 | 1 . 2 . Engine 1 | 1 . . . Core 2 | . . 2 . Reactor . | . . . . Propulsion 3 | 2 . 1 . Treads 3 | 2 . 1 . Leg . | . . . . Wheel . | . . . . Hover . | . . . . Flight . | . . . . Utility 8 | 2 3 2 1 Device 3 | . 2 1 . Storage 1 | . . . 1 Processor 2 | 2 . . . Hackware . | . . . . Protection 2 | . 1 1 . Artifact . | . . . . Weapon 9 | 2 1 . 6 Energy Gun 4 | 2 1 . 1 Energy Cannon . | . . . . Ballistic Gun 4 | . . . 4 Ballistic Cannon 1 | . . . 1 Launcher . | . . . . Special Weapon . | . . . . Impact Weapon . | . . . . Slashing Weapon . | . . . . Piercing Weapon . | . . . . Special Melee Weapon . | . . . . Unidentified Prototypes . | . . . . Parts Lost 8 | . . 1 7 Power 1 | . . . 1 Propulsion 2 | . . . 2 Utility 1 | . . 1 . Weapon 4 | . . . 4 Highest Loss Streak 2 | . . 1 2 To Critical Strikes . | . . . . Average Backups 6 | 2 5 5 7 Power . | . . . . Propulsion . | . . . . Utility 4 | 2 4 4 5 Weapon 1 | . 1 1 2 Tool/Special . | . . . . Unused Backups 11 | . 2 1 8 Power . | . . . . Propulsion . | . . . . Utility 9 | . 2 . 7 Weapon 2 | . . 1 1 Tool/Special . | . . . . Average Slot Usage (%) 89 | . 98 98 84 Engine 3 | . 12 8 . Core 5 | . . 3 7 Treads 17 | . 25 25 13 Device 13 | . 16 15 12 Storage 5 | . . . 8 Processor 3 | . 19 . . Protection 13 | . . 19 15 Energy Gun 11 | . 25 25 4 Ballistic Gun 12 | . . . 20 Peak Build Rating 18 | 7 8 12 18 Average Rating 12 | 5 7 9 14 On Entrance 6 | . 7 8 12 Avg Prop Armor Cover (%) . | . . . . Naked Turns . | . . . . Heaviest Build 93 | 8 12 14 93 Greatest Support 40 | 40 40 40 40 Greatest Overweight (x) 29 | . . . 29 Average Overweight (x) 1 | . . . 2 Largest Inventory Capacity 25 | 5 5 5 25 Average Capacity 13 | 5 5 5 18 Most Carried 10 | 5 5 5 10 Average Carried 6 | 2 5 5 7 Final Capacity 25 | 5 5 5 25 Final Carried 9 | 5 5 5 9 Class Distribution -------------------- 100% | Hacker-Mutant Dominant Class ---------------- Hacker-Mutant | -10/Materials Hacker-Mutant | -10/Mines Hacker-Mutant | -10/Subcaves Resources | -11 -10 -10 -10 ----------- Run | Yrd Mat Min Sub Matter Collected 1016 | 270 70 74 602 Remotely . | . . . . Salvage Created 1222 | 92 512 155 463 Parts 60 | 3 20 7 30 Haulers Intercepted 2 | . 2 . . Recyclers Shooed 2 | . 2 . . Parts Field Recycled . | . . . . Retrieved Matter . | . . . . Parts Self-Destructed . | . . . . Prevented . | . . . . Parts Restored . | . . . . Kills | -11 -10 -10 -10 ------- Run | Yrd Mat Min Sub Combat Hostiles Destroyed 21 | . 4 5 12 Guns 20 | . 4 4 12 Classes Destroyed 10 | 2 5 1 2 Builder 2 | . 1 1 . Tunneler 1 | 1 . . . Hauler 2 | . 2 . . Recycler 3 | 1 2 . . Mechanic 1 | . 1 . . Turret 2 | . . . 2 Watcher 2 | . 2 . . Grunt 6 | . 4 2 . Subdweller 12 | . . . 12 Assembled 3 | . . 3 . Best Kill Streak 2 | 1 2 2 2 Combat Bots Only 2 | . 2 2 2 Max Kills in Single Turn 1 | 1 1 1 1 Gunslinging . | . . . . Exploded . | . . . . Melee . | . . . . Uniques/NPCs Destroyed . | . . . . Combat | -11 -10 -10 -10 -------- Run | Yrd Mat Min Sub Hostile Shots Fired 189 | . 25 32 132 Missed 69 | . 7 15 47 Hits 120 | . 18 17 85 Melee 1 | . . 1 . Projectile 119 | . 18 16 85 AOE 3 | . . 2 1 Critical Strikes 1 | . 1 . . Actively Blocked 1 | . . . 1 Damage Taken 1334 | . 134 152 1048 Core 258 | . 14 13 231 Absorbed by Shields . | . . . . Redirected to Shielding 45 | . . 2 43 Ignored by Resistances 770 | . 87 96 587 Core Remaining (%) 100 | 100 . . . Volleys Fired 138 | 4 42 18 74 Largest 2 | 2 2 2 2 Hottest 100 | 90 100 100 100 Shots Fired 266 | 8 82 36 140 Gun 265 | 8 82 36 139 Cannon 1 | . . . 1 Launcher . | . . . . Special . | . . . . Kinetic 125 | . . . 125 Thermal 141 | 8 82 36 15 Explosive . | . . . . Electromagnetic . | . . . . Robot Hit Streak 85 | 8 56 69 85 Robot Miss Streak 1 | . 1 1 1 Penetration Max . | . . . . Secondary Targets 4 | . . 1 3 Max Gunslinging Chain 1 | . . 1 1 Shots Hit Robots 188 | 8 72 31 77 Core Hits 70 | 3 25 12 30 Critical Kills . | . . . . Critical Parts Destroyed . | . . . . Critical Strikes 11 | 1 5 3 2 Burn 11 | 1 5 3 2 Melee Attacks . | . . . . Impact . | . . . . Slashing . | . . . . Piercing . | . . . . Sneak Attacks . | . . . . Combat Hostiles . | . . . . Follow-up Attacks . | . . . . Damage Inflicted 2816 | 91 880 385 1460 Guns 2816 | 91 880 385 1460 Cannons . | . . . . Explosions . | . . . . Melee . | . . . . Ramming . | . . . . Kinetic 1373 | . . . 1373 Thermal 1443 | 91 880 385 87 Explosive . | . . . . Electromagnetic . | . . . . Impact . | . . . . Slashing . | . . . . Piercing . | . . . . Highest Corruption 1 | . 1 1 1 Average Corruption 1 | . 1 1 1 Corruption Purged . | . . . . Corruption Blocked . | . . . . Effects 45 | . 7 4 34 Message Errors 9 | . 2 . 7 Matter Fused 16 | . . 3 13 Heat Flow Errors 3 | . 2 . 1 Energy Discharges 5 | . 1 . 4 Parts Fused 1 | . . . 1 Data Loss (minor) 3 | . 2 . 1 Data Loss (major) 3 | . . . 3 Misfires 4 | . . . 4 Alerts 1 | . . 1 . Overload Shots . | . . . . Overflow Damage . | . . . . Projectiles . | . . . . Explosions . | . . . . Melee . | . . . . Knockbacks . | . . . . Impact . | . . . . Kinetic . | . . . . Secondary . | . . . . Self-Inflicted Damage . | . . . . Shots . | . . . . Rammed . | . . . . Targets Rammed . | . . . . Kicked . | . . . . Crushed . | . . . . Highest Temperature 327 | 90 327 180 243 Average Temperature 95 | 40 108 72 98 Received Heat Transfer 615 | . 144 48 423 Effects 4 | . 4 . . Interference 4 | . 4 . . Siege Activations . | . . . . Martial Activations . | . . . . Shielding Activations . | . . . . Robots Disrupted . | . . . . Combat Hostiles . | . . . . Robots Corrupted . | . . . . Combat Hostiles . | . . . . Parts Fried . | . . . . Impact Corruptions . | . . . . Robots Melted 1 | . . 1 . Combat Hostiles 1 | . . 1 . Parts Melted 13 | 1 8 1 3 Heat Transferred 4880 | 322 2782 1369 407 Parts Sabotaged . | . . . . Parts Stolen . | . . . . Parts Stripped . | . . . . Power Chain Reactions . | . . . . Alert | -11 -10 -10 -10 ------- Run | Yrd Mat Min Sub Maximum Alert Level . | . . . . Low Security (%) 100 | 100 100 100 . Level 1 . | . . . . Level 2 . | . . . . Level 3 . | . . . . Level 4 . | . . . . Level 5 . | . . . . High Security . | . . . . Max Security . | . . . . Peak Influence 50 | 5 50 50 . Initial 4 | . . 4 . Average 2 | 1 3 2 . Influence Increases 312 | 10 165 67 70 Destroy 0b10 Robot/C 160 | . 80 40 40 Destroy 0b10 Robot/NC 55 | 10 40 5 . Destroy Leader 48 | . 38 10 . Successful Hack 19 | . 7 12 . Lose Combat Pursuer 30 | . . . 30 Influence Decreases 312 | 10 150 82 70 Entered New Map 11 | . . 11 . Time Decay 291 | 10 150 71 60 Lost Part 10 | . . . 10 Squads Dispatched 3 | . 2 1 . Investigation 3 | . 2 1 . Extermination . | . . . . Reinforcement . | . . . . Assault . | . . . . Garrison . | . . . . Intercept . | . . . . Searches Triggered . | . . . . Construction Impeded . | . . . . Haulers Reinforced . | . . . . Active Scanning Responses . | . . . . Cargo Convoy Interrupts . | . . . . Stealth | -11 -10 -10 -10 --------- Run | Yrd Mat Min Sub Distress Signals . | . . . . Communications Jammed . | . . . . Distress Signals . | . . . . Times Spotted 53 | . 13 24 16 Peak Tracking Total 20 | . 2 20 2 Tactical Retreats 2 | . . 1 1 Traps | -11 -10 -10 -10 ------- Run | Yrd Mat Min Sub Traps Triggered 4 | . 2 . 2 Indirectly . | . . . . Trap Hack Attempts . | . . . . Triggered . | . . . . Disarmed . | . . . . Reprogrammed . | . . . . Reused . | . . . . Traps Extracted . | . . . . Installed . | . . . . Triggered . | . . . . Machines | -11 -10 -10 -10 ---------- Run | Yrd Mat Min Sub Machines Disabled . | . . . . Max in Single Turn . | . . . . Machines Repaired . | . . . . Machines Dismantled . | . . . . Machines Sabotaged . | . . . . Overloaded Fab Kills . | . . . . Hacking | -11 -10 -10 -10 --------- Run | Yrd Mat Min Sub Machines Accessed 11 | . 10 1 . Terminals 9 | . 8 1 . Fabricators . | . . . . Repair Stations . | . . . . Recycling Units 2 | . 2 . . Scanalyzers . | . . . . Garrison Access . | . . . . Total Hacks 38 | . 31 7 . Successful 23 | . 19 4 . Failed 15 | . 12 3 . Catastrophic . | . . . . Database Lockouts . | . . . . Manual 32 | . 25 7 . Terminals 34 | . 27 7 . Fabricators . | . . . . Repair Stations . | . . . . Recycling Units 4 | . 4 . . Scanalyzers . | . . . . Garrison Access . | . . . . Terminal Hacks 15 | . 11 4 . Robot Analysis 2 | . 2 . . Prototype ID Bank 13 | . 9 4 . Fabricator Hacks . | . . . . Repair Station Hacks . | . . . . Recycling Unit Hacks 2 | . 2 . . Retrieve Components 2 | . 2 . . Scanalyzer . | . . . . Garrison Access Hacks . | . . . . Unauthorized Hacks 6 | . 6 . . Terminals 6 | . 6 . . Botnet 6 | . 6 . . Fabricators . | . . . . Repair Stations . | . . . . Recycling Units . | . . . . Scanalyzers . | . . . . Garrison Access . | . . . . Data Cores Recovered . | . . . . Used . | . . . . Hacking Detections 9 | . 8 1 . Full Trace Events 4 | . 3 1 . Feedback Events . | . . . . Feedback Blocked . | . . . . Robot Schematics Acquired . | . . . . Robots Built . | . . . . Authchips . | . . . . Time . | . . . . Total Robot Build Rating . | . . . . Part Schematics Acquired . | . . . . Parts Built . | . . . . Authchips . | . . . . Time . | . . . . Total Part Build Rating . | . . . . Part Studies Acquired . | . . . . Parts Repaired . | . . . . Time . | . . . . Parts Recycled . | . . . . Recycled Matter . | . . . . Retrieved Matter . | . . . . Retrieved Components 3 | . 3 . . Parts Scanalyzed . | . . . . Part Schematics Acquired . | . . . . Parts Damaged . | . . . . Bothacking | -11 -10 -10 -10 ------------ Run | Yrd Mat Min Sub Used RIF Installer . | . . . . Robots Hacked . | . . . . Non-combat . | . . . . Combat . | . . . . Robot Hacks Applied . | . . . . Relay Couplers Released . | . . . . Fabnet Peak Effective % . | . . . . Robots Rewired . | . . . . Allies Hacked . | . . . . Hacks Repelled . | . . . . Allies | -11 -10 -10 -10 -------- Run | Yrd Mat Min Sub Total Allies . | . . . . Largest Group . | . . . . Highest-Rated Group . | . . . . Highest-Rated Ally . | . . . . Total Orders . | . . . . Ally Attacks . | . . . . Total Damage . | . . . . Kills . | . . . . Allies Corrupted . | . . . . Allies Melted . | . . . . Intel | -11 -10 -10 -10 ------- Run | Yrd Mat Min Sub Active Infowar (turns) 6158 | . 1083 1070 4005 Sensors 773 | . 453 320 . Structural 6145 | . 1070 1070 4005 Robot Analysis Total 2 | . 2 . . Derelict Logs Recovered 2 | . . 1 1 Drone Launches . | . . . . Drone Recoveries . | . . . . Exploration | -11 -10 -10 -10 ------------- Run | Yrd Mat Min Sub Turns Passed 6422 | 128 1219 1070 4005 Spaces Moved 2463 | 64 676 580 1143 Core 76 | 4 . . 72 Treads 2387 | 60 676 580 1071 Legs . | . . . . Wheels . | . . . . Hover . | . . . . Flight . | . . . . Fastest Speed 50 | 50 160 160 160 Average Speed 238 | 153 160 160 330 Slowest Speed 1500 | 160 160 160 1500 Overloaded Moves . | . . . . Propulsion Burnouts . | . . . . Robots Hopped . | . . . . Potential Cave-ins . | . . . . Cave-ins Triggered . | . . . . Exploration Rate (%) 69 | 3 98 98 77 Regions Visited 3 Branch Regions 2 Pre-discovered Areas 1 | . . . 1 Known Exits Taken 3 | 1 1 1 . Unknown Exits Taken . | . . . . Scrap Searched 11 | . . . 11 Spaces Dug 2 | . . . 2 Terrain Destroyed 2 | . . . 2 Melee . | . . . . Projectile 2 | . . . 2 AOE . | . . . . Terrain Rammed . | . . . . Walls Destroyed . | . . . . Machines Disabled . | . . . . Actions | -11 -10 -10 -10 --------- Run | Yrd Mat Min Sub Total 2745 | 86 733 690 1236 Wait 87 | . 2 82 3 Move 2460 | 63 675 579 1143 Hop . | . . . . Pick Up 22 | 12 2 1 7 Fast Attach 9 | . 7 1 1 Attach 10 | 7 . . 3 Detach 2 | . 2 . . Swap 7 | . . 4 3 Drop 10 | . 3 5 2 Fire 138 | 4 42 18 74 Melee . | . . . . Ram . | . . . . Kick . | . . . . Crush . | . . . . Escape Stasis . | . . . . Rewire . | . . . . Trap . | . . . . Miscellaneous . | . . . . Route ------- -11/Scrapyard -10/Materials (discovered 5 exits: *Mat x3 / *Min / *Sub) -10/Mines (discovered 4 exits: *Mat x2 / *Exi / *Sub) -10/Subcaves (discovered 2 exits: *Mat / *Rec) History --------- Turn | Location | Event 54 | -11/Scrapyard | Identified exit to Materials 54 | -11/Scrapyard | Discovered exit to Materials (range 13) 129 | -11/Scrapyard | Entered Materials 129 | -10/Materials | Evolved 1 slot: Utility x1 318 | -10/Materials | Build established: Hacker-Mutant 337 | -10/Materials | Identified exit to Materials 337 | -10/Materials | Discovered exit to Materials (range 15) 360 | -10/Materials | Identified exit to Subcaves 360 | -10/Materials | Discovered exit to Subcaves (range 5) 661 | -10/Materials | Discovered exit to Materials (range 3) 827 | -10/Materials | Discovered exit to Materials (range 14) 1283 | -10/Materials | Identified exit to Mines 1283 | -10/Materials | Discovered exit to Mines (range 16) 1348 | -10/Materials | Entered Mines 1353 | -10/Mines | Met a Derelict bent on vengeance 1361 | -10/Mines | Discovered exit to Materials (range 4) 1372 | -10/Mines | Discovered exit to Subcaves (range 9) 1493 | -10/Mines | Found a hidden stash of uninstalled traps 1545 | -10/Mines | Deemed a non-threat by the Exiles lab entrance 1545 | -10/Mines | Identified exit to Exiles 1545 | -10/Mines | Discovered exit to Exiles (range 5) 1689 | -10/Mines | A weapon hastily lodged in a ceiling crevice suddenly fell to the ground 1742 | -10/Mines | Assembled infested the area 1747 | -10/Mines | Assisted by a Guerilla fighting off Assembled 1865 | -10/Mines | Discovered exit to Materials (range 5) 2138 | -10/Mines | Learned 2 Materials zone layouts 2418 | -10/Mines | Entered Subcaves 2419 | -10/Subcaves | Approached by a straggling Scientist 2433 | -10/Subcaves | Learned location of Zion (-6) 2852 | -10/Subcaves | A swath of the cavern ceiling suddenly collapsed 3146 | -10/Subcaves | A swath of the cavern ceiling suddenly collapsed 3216 | -10/Subcaves | Shifting Twisted Machinery released Shrapnel Trap 3280 | -10/Subcaves | Shifting Twisted Machinery released Flamer 3741 | -10/Subcaves | Shifting Twisted Machinery released Mak. Light Armor Plating 3751 | -10/Subcaves | Shifting Twisted Machinery released Sub. Beam Cannon 4395 | -10/Subcaves | Shifting Twisted Machinery released Barrage Gun 5018 | -10/Subcaves | Identified exit to Materials 5018 | -10/Subcaves | Discovered exit to Materials (range 12) 5307 | -10/Subcaves | Core integrity fell below 50% 5313 | -10/Subcaves | Identified exit to Recycling 5313 | -10/Subcaves | Discovered exit to Recycling (range 16) 5380 | -10/Subcaves | Core integrity fell below 20% 6423 | -10/Subcaves | Destroyed by MB-TLG(R) with Subdweller Laser Last Messages --------------- to Scrap Shield. 05386_ 0J-P73(R) destroyed. 05389_ Acquired 15 matter. 05434_ Acquired Humpback. 05730_ System corrupted: Matter fused (-8). 05822_ System corrupted: Substantial component data lost. 05900_ System corrupted: Component data lost. 05960_ System corrupted: Substantial component data lost. 06005_ Acquired 41 matter. 06034_ System corrupted: Matter fused (-5). 06052_ System corrupted: Heat flow error (+288). 06151_ #B4DHQ PLM73VIPXR 9ZNWUNJJBEHUNTD%|1T325 06237_ System corrupted: Energy discharge (-38). 06272_ System corrupted: Substantial component data lost. 06360_ System corrupted: Matter fused (-8). 06384_ System corrupted: Matter fused (-7). 06402_ Barrage Gun destroyed. Map ----- +----------------------------------------------------+ | ?????????????????????????????????????????????????? | | ?????????????????????????????????????????????????? | | ?????????????????????????????????????????????????? | | ?????????????????????????????????????????????????? | | ?????????????????????????????????????????????????? | | ?????????????????????????????????????????????????? | | ?????????????????????????????????????????????????? | | ?????????????????????????????????????????????????? | | ???????????????????###???????????????????????????? | | ???????????????????## ??????????????????????????? | | ??????????????????? ??????????????????????????? | | ??????????????????? ??????????????????????????? | | ??????????????????? ??????????????????????????? | | ?????????????????? ??????????????????????????? | | ?????????????????### ??????????????????????????? | | ????????????? ##### #????????????????????????? | | ?????????????###### ###???????????????????????? | | ?????????????## #####?????????????????????? | | #??????????????? #####????????????????????? | | #???????????????## ###????????????????????? | | #???????????????### ##????????????????????? | | #?### ##?????????## ###????????????????????? | | #########????????## R ###?????????????????????? | | #### ############## ; ##?????????????????????? | | ### ## ###############;; #######?????????????????? | | "#### """#"#####""# @########## #??????????? | | ########### #""##" "#;#; # ## # #####???????? | | ###### ######"" #"###### ##???????? | | ??????#######"""#"### ;##%[ ### ###???????? | | ????????#####"#""""## ##=% ### ????? # ????????? | | ???????????###""##### *###??????????????????? | | ???????????###"###### ###??????????????????? | | ?????????####""####### ##???????????????????? | | ?????????######"###### ;##???????????????????? | | ########### ##"#"###### ###???????????????????? | | ########### "#""#" ###! ###???????????????????? | | ## ### # # "## # ! ##????????????????????? | | # " !] ##????????????????????? | | ## % " # ##????????????????????? | | ## ## |########????????????????????? | | ## ### ########????????????????????? | | ## ###### ##??????????????????????????? | | ## ##### ####??????????????????????????? | | # ###### #####??????????????????????????? | | # ##### ###????????#########???????????? | | ## ##?## ###????????#########???????????? | | ## ######"& ####?#####?##""" ##??????####?? | | # ######"" !& ############""""###??########?? | | " """###" &%!&##### #####""" ##?####### ###? | | """""""""# [ #### ### " ###### ###? | +----------------------------------------------------+ Best States ------------- Heat Dissipation 25 Energy Generation 14 Energy Capacity 250 Matter Stores 300 Matter Capacity 300 Sight Range 16 Robot Scan Range 14 Terrain Scan Density 10 Armor Coverage 150 Resistance: KI 35 Resistance: TH 35 Resistance: EX 35 Resistance: EM 35 Resistance: I 35 Resistance: S 35 Resistance: P 35 Core Shielding 20 Evasion (%) 40 Targeting Accuracy 10 Recoil Reduction 2 Offensive Hacking 20 Item Schematics ----------------- None Robot Schematics ------------------ None Fabricated ------------ Nothing Repaired ---------- Nothing Studied --------- None Alien Tech Used ----------------- None Achievements -------------- None Challenges ------------ None Game ------ Seed ModifiedServoBroadsword Manual? 0 Play Time 00:20:14 Cumulative 219.5 hours Start 2025.12.22 @ 13:39:11 End 2025.12.22 @ 13:56:44 Sessions 1 Manual Loads 0 Difficulty Explorer Special Mode None Game No. 330 Rogue 0 Adventurer 0 Explorer 330 Win Type - Total 0 Types 0/0/0/0/0/0/0/0/0/0 Lore% 71 Gallery% 68 Achievement% 53 Wizard Run 0 Options --------- Layout 1 ASCII 0 Keyboard 0 Movement Mouse Keybinds 0 Fullscreen 1 Font 24/Smallcaps Map View 50x35 Zoom Use 0% Tactical HUD 1 Map Filters NONE Filters NONE Steam 1 RUN: 3aea6db3-abb1-4dc1-9c64-621aacb93dcb